bitfinex-derivatives/quotes_BTCF0:USTF0_20260118
["timestamp","ask_amount","ask_price","bid_price","bid_amount"]
[1768767671508,0.11705438,95428.0,95405.0,0.2103298]
[1768767671813,0.14003251,95427.0,95410.0,0.11504118]
[1768767672014,0.02297813,95426.0,95410.0,0.11504118]
[1768767672214,0.02297813,95425.0,95410.0,0.11504118]
[1768767672408,0.02297813,95424.0,95410.0,0.11504118]
[1768767672613,0.02297813,95423.0,95410.0,0.11504118]
[1768767672808,0.02297813,95422.0,95410.0,0.11504118]
[1768767673009,0.010482,95427.0,95410.0,0.11504118]
[1768767673212,0.0230038,95426.0,95410.0,0.11504118]
[1768767673411,0.0230038,95425.0,95410.0,0.32537098]
[1768767673613,0.0230038,95424.0,95415.0,0.10455718]
[1768767673812,0.0230038,95423.0,95411.0,0.2103298]
[1768767674012,0.010482,95427.0,95411.0,0.09937112]
[1768767674214,0.02299958,95426.0,95411.0,0.09937112]
[1768767674514,0.02299958,95425.0,95411.0,0.09937112]
[1768767674715,0.02299958,95424.0,95411.0,0.09937112]
[1768767674908,0.010482,95427.0,95412.0,0.10480312]
[1768767675108,0.02299726,95426.0,95412.0,0.10480312]
[1768767675316,0.010482,95427.0,95412.0,0.10480312]
[1768767675711,0.12753738,95424.0,95412.0,0.10480312]
[1768767676105,0.12753738,95424.0,95410.0,0.19895718]
[1768767676310,0.010483,95424.0,95413.0,0.10480038]
[1768767676711,0.010483,95424.0,95410.0,0.19895718]
[1768767677013,0.010483,95424.0,95414.0,0.10480202]
[1768767677403,0.010483,95424.0,95410.0,0.0944]
[1768767677609,0.11705438,95427.0,95410.0,0.0944]
[1768767677813,0.11705438,95427.0,95411.0,0.10480312]
[1768767681021,0.12753638,95427.0,95411.0,0.10480312]
[1768767692025,0.11705438,95427.0,95412.0,0.010484]
[1768767692626,0.09563065,95431.0,95415.0,0.010484]
[1768767692627,0.20997639,95431.0,95415.0,0.010484]
[1768767692827,0.02297779,95430.0,95415.0,0.010484]
[1768767693027,0.20997639,95431.0,95415.0,0.010484]
[1768767693530,0.11434574,95431.0,95415.0,0.010484]
[1768767694325,0.02298052,95430.0,95415.0,0.010484]
[1768767694528,0.11434574,95431.0,95415.0,0.010484]
[1768767694730,0.0229805,95430.0,95415.0,0.010484]
[1768767695028,0.11434574,95431.0,95415.0,0.010484]
[1768767695331,0.02298049,95430.0,95415.0,0.010484]
[1768767695536,0.12482774,95431.0,95415.0,0.010484]
[1768767695732,0.0229823,95430.0,95415.0,0.010484]
[1768767695931,0.12482774,95431.0,95415.0,0.010484]
[1768767696132,0.02298227,95430.0,95415.0,0.010484]
[1768767696431,0.12482774,95431.0,95415.0,0.010484]
[1768767696633,0.02298212,95430.0,95415.0,0.010484]
[1768767696931,0.02298212,95430.0,95411.0,0.11699372]
[1768767696932,0.12993353,95434.0,95417.0,0.010483]
[1768767697132,0.14243354,95433.0,95417.0,0.010483]
[1768767697333,0.02298201,95432.0,95417.0,0.010483]
[1768767698633,0.02298201,95432.0,95420.0,0.010483]
[1768767698830,0.11945153,95437.0,95422.0,0.010483]
[1768767699024,0.02298801,95436.0,95422.0,0.010483]
[1768767699230,0.02298801,95435.0,95422.0,0.010483]
[1768767699429,0.02298801,95434.0,95422.0,0.010483]
[1768767699629,0.11945153,95440.0,95422.0,0.010483]
[1768767699929,0.11945153,95440.0,95419.0,0.11862054]
[1768767699930,0.02299049,95439.0,95424.0,0.010483]
[1768767700129,0.02299049,95438.0,95424.0,0.010483]
[1768767700327,0.02299049,95437.0,95424.0,0.010483]
[1768767700530,0.11945153,95444.0,95426.0,0.010482]
[1768767700739,0.02299332,95443.0,95426.0,0.010482]
[1768767701032,0.11945153,95444.0,95426.0,0.010482]
[1768767701033,0.02299332,95442.0,95426.0,0.010482]
[1768767701238,0.02299332,95441.0,95426.0,0.010482]
[1768767701428,0.02299332,95440.0,95426.0,0.010482]
[1768767701634,0.02299332,95439.0,95426.0,0.010482]
[1768767701839,0.11945153,95448.0,95427.0,0.09489685]
[1768767702134,0.02299457,95447.0,95429.0,0.09489685]
[1768767702334,0.02299457,95446.0,95430.0,0.010482]
[1768767702535,0.02299457,95445.0,95430.0,0.010482]
[1768767702734,0.11945153,95448.0,95430.0,0.010482]
[1768767703035,0.02298847,95447.0,95432.0,0.010482]
[1768767703234,0.11945153,95452.0,95432.0,0.22399939]
[1768767703434,0.02305018,95451.0,95432.0,0.22399939]
[1768767703634,0.02305018,95450.0,95433.0,0.10477841]
[1768767703836,0.02305018,95449.0,95433.0,0.10477841]
[1768767704036,0.02305018,95448.0,95433.0,0.10477841]
[1768767704233,0.11945153,95452.0,95433.0,0.10477841]
[1768767704441,0.14249645,95451.0,95433.0,0.10477841]
[1768767704633,0.02304492,95450.0,95433.0,0.10477841]
[1768767707338,0.11945153,95451.0,95433.0,0.10477841]
[1768767708246,0.11945153,95454.0,95433.0,0.3182958]
[1768767708547,0.14247971,95453.0,95433.0,0.09489685]
[1768767708742,0.02302818,95452.0,95433.0,0.09489685]
[1768767708945,0.02302818,95452.0,95434.0,0.10477567]
[1768767709246,0.14247971,95452.0,95434.0,0.10477567]
[1768767709444,0.11945153,95452.0,95434.0,0.10477567]
[1768767712747,0.21405164,95455.0,95434.0,0.10477567]
[1768767712953,0.02302063,95454.0,95435.0,0.20589489]
[1768767713147,0.02302063,95453.0,95435.0,0.20589489]
[1768767713352,0.02302063,95452.0,95435.0,0.20589489]
[1768767713549,0.21405164,95455.0,95435.0,0.20589489]
[1768767713747,0.0230198,95454.0,95435.0,0.20589489]
[1768767714046,0.0230198,95453.0,95435.0,0.20589489]
[1768767714247,0.21405164,95455.0,95435.0,0.09230589]
[1768767714248,0.13836893,95452.0,95435.0,0.09230589]
[1768767714449,0.11534913,95452.0,95436.0,0.09436]
[1768767716655,0.08654913,95452.0,95436.0,0.09436]
[1768767716855,0.09276626,95452.0,95436.0,0.09436]
[1768767718757,0.11534913,95451.0,95436.0,0.09436]
[1768767724362,0.02303686,95450.0,95436.0,0.09436]
[1768767724662,0.11534913,95451.0,95436.0,0.09436]
[1768767725064,0.0230375,95450.0,95436.0,0.09436]
[1768767725263,0.11534913,95451.0,95436.0,0.09436]
[1768767725456,0.02304101,95450.0,95436.0,0.09436]
[1768767725657,0.11534913,95451.0,95436.0,0.09436]
[1768767725859,0.02304106,95450.0,95436.0,0.09436]
[1768767726060,0.11534913,95451.0,95436.0,0.09436]
[1768767726360,0.02304162,95450.0,95436.0,0.09436]
[1768767726562,0.09276626,95457.0,95436.0,0.30025489]
[1768767726767,0.02304613,95456.0,95437.0,0.113589]
[1768767727067,0.02304613,95455.0,95437.0,0.113589]
[1768767727266,0.02304613,95454.0,95437.0,0.113589]
[1768767727466,0.02304613,95453.0,95436.0,0.18666589]
[1768767727668,0.02304613,95452.0,95436.0,0.18666589]
[1768767727860,0.11534913,95455.0,95436.0,0.18666589]
[1768767728060,0.02305261,95454.0,95436.0,0.18666589]
[1768767728367,0.02305261,95453.0,95436.0,0.18666589]
[1768767728562,0.02305261,95452.0,95436.0,0.18666589]
[1768767728763,0.02305261,95451.0,95436.0,0.18666589]
[1768767728964,0.11534913,95455.0,95436.0,0.18666589]
[1768767729161,0.02306029,95454.0,95440.0,0.113589]
[1768767729368,0.20970913,95460.0,95440.0,0.20589489]
[1768767729563,0.02306639,95459.0,95440.0,0.20589489]
[1768767729872,0.02306639,95458.0,95441.0,0.20589489]
[1768767730073,0.02306639,95457.0,95441.0,0.20589489]
[1768767730272,0.02306639,95456.0,95441.0,0.20589489]
[1768767730470,0.02306639,95455.0,95444.0,0.20589489]
[1768767730675,0.09666453,95464.0,95447.0,0.20589489]
[1768767730876,0.02307138,95463.0,95447.0,0.20589489]
[1768767731168,0.02307138,95462.0,95447.0,0.20589489]
[1768767731374,0.02307138,95461.0,95447.0,0.20589489]
[1768767731570,0.02307138,95460.0,95447.0,0.20589489]
[1768767731775,0.02307138,95459.0,95447.0,0.20589489]
[1768767731975,0.02307138,95458.0,95447.0,0.20589489]
[1768767732170,0.09666453,95464.0,95447.0,0.09230589]
[1768767732370,0.02306625,95463.0,95447.0,0.09230589]
[1768767732571,0.02306625,95462.0,95447.0,0.09230589]
[1768767732774,0.02306625,95461.0,95447.0,0.09230589]
[1768767733075,0.02306625,95460.0,95447.0,0.09230589]
[1768767733276,0.02306625,95459.0,95447.0,0.09230589]
[1768767733479,0.09666453,95464.0,95447.0,0.09230589]
[1768767733678,0.02308313,95463.0,95447.0,0.09230589]
[1768767733868,0.02308313,95462.0,95447.0,0.09230589]
[1768767734070,0.02308313,95461.0,95447.0,0.09230589]
[1768767734268,0.09666453,95464.0,95447.0,0.09230589]
[1768767734583,0.02307969,95463.0,95447.0,0.09230589]
[1768767734783,0.02307969,95462.0,95447.0,0.09230589]
[1768767734982,0.09666453,95464.0,95447.0,0.09230589]
[1768767735184,0.02307667,95463.0,95447.0,0.09230589]
[1768767735387,0.09666453,95464.0,95447.0,0.09230589]
[1768767735388,0.02307667,95462.0,95447.0,0.09230589]
[1768767735585,0.09666453,95464.0,95447.0,0.09230589]
[1768767735886,0.0230763,95463.0,95447.0,0.09230589]
[1768767736081,0.0230763,95462.0,95447.0,0.09230589]
[1768767736384,0.00230453,95464.0,95447.0,0.09230589]
[1768767736580,0.02307348,95463.0,95447.0,0.09230589]
[1768767736782,0.02307348,95462.0,95447.0,0.09230589]
[1768767736981,0.00230453,95464.0,95447.0,0.09230589]
[1768767737183,0.02307348,95463.0,95447.0,0.09230589]
[1768767737384,0.00230453,95464.0,95447.0,0.09230589]
[1768767737582,0.02307131,95463.0,95447.0,0.09230589]
[1768767737785,0.00230453,95464.0,95447.0,0.09230589]
[1768767737985,0.02307124,95463.0,95447.0,0.09230589]
[1768767738186,0.00230453,95464.0,95447.0,0.09230589]
[1768767738380,0.0230694,95463.0,95449.0,0.20589489]
[1768767738583,0.00230453,95464.0,95449.0,0.20589489]
[1768767738786,0.0230695,95463.0,95449.0,0.20589489]
[1768767738986,0.00230453,95464.0,95450.0,0.10443919]
[1768767739287,0.02306954,95463.0,95450.0,0.10443919]
[1768767739489,0.00230453,95464.0,95450.0,0.10443919]
[1768767739689,0.02306789,95463.0,95450.0,0.10443919]
[1768767739889,0.00230453,95464.0,95450.0,0.10443919]
[1768767740390,0.00230453,95464.0,95451.0,0.20589489]
[1768767740785,0.00230453,95464.0,95452.0,0.113589]
[1768767740985,0.00230453,95464.0,95452.0,0.20589489]
[1768767741690,0.00230453,95464.0,95454.0,0.10443919]
[1768767741890,0.00230453,95464.0,95454.0,0.31033408]
[1768767742194,0.00230453,95464.0,95454.0,0.20589489]
[1768767744198,0.00230453,95464.0,95454.0,0.09230589]
[1768767744582,0.00230453,95464.0,95454.0,0.20543922]
[1768767744790,0.10991897,95477.0,95455.0,0.20588172]
[1768767744981,0.0230622,95468.0,95455.0,0.09274839]
[1768767745186,0.10991897,95473.0,95455.0,0.09274839]
[1768767745393,0.02306131,95468.0,95455.0,0.09274839]
[1768767745594,0.20427897,95473.0,95455.0,0.09274839]
[1768767745895,0.02306143,95468.0,95450.0,0.10443919]
[1768767746088,0.10991897,95470.0,95451.0,0.11313333]
[1768767746390,0.10991897,95470.0,95450.0,0.19718758]
[1768767746391,0.02306163,95468.0,95454.0,0.11313333]
[1768767746594,0.20427897,95473.0,95454.0,0.11313333]
[1768767749289,0.02306535,95468.0,95454.0,0.20588172]
[1768767749495,0.20427897,95473.0,95454.0,0.20588172]
[1768767749797,0.02306532,95468.0,95454.0,0.20588172]
[1768767749990,0.20427897,95473.0,95454.0,0.20588172]
[1768767750190,0.02306544,95468.0,95454.0,0.20588172]
[1768767750393,0.20427897,95473.0,95454.0,0.20588172]
[1768767750590,0.02306763,95468.0,95454.0,0.20588172]
[1768767750792,0.20427897,95473.0,95454.0,0.20588172]
[1768767750992,0.0230676,95468.0,95454.0,0.20588172]
[1768767751193,0.20427897,95473.0,95454.0,0.20588172]
[1768767751393,0.0230688,95468.0,95454.0,0.20588172]
[1768767751593,0.20427897,95473.0,95454.0,0.20588172]
[1768767751795,0.02306882,95468.0,95454.0,0.20588172]
[1768767751988,0.20427897,95473.0,95454.0,0.20588172]
[1768767752190,0.02307043,95468.0,95454.0,0.20588172]
[1768767752398,0.20427897,95473.0,95454.0,0.20588172]
[1768767752592,0.02307044,95468.0,95454.0,0.20588172]
[1768767752795,0.20427897,95473.0,95454.0,0.20588172]
[1768767752994,0.02307044,95468.0,95454.0,0.20588172]
[1768767753195,0.20427897,95473.0,95454.0,0.20588172]
[1768767753397,0.02307251,95468.0,95454.0,0.20588172]
[1768767753595,0.20427897,95473.0,95454.0,0.20588172]
[1768767753796,0.02307251,95468.0,95454.0,0.20588172]
[1768767753995,0.20427897,95473.0,95454.0,0.20588172]
[1768767754197,0.02307523,95468.0,95454.0,0.20588172]
[1768767754499,0.20427897,95473.0,95454.0,0.20588172]
[1768767754700,0.0230752,95468.0,95454.0,0.20588172]
[1768767754912,0.09436,95473.0,95454.0,0.20588172]
[1768767755201,0.0230752,95468.0,95454.0,0.20588172]
[1768767755394,0.0230752,95467.0,95454.0,0.20588172]
[1768767755596,0.09436,95473.0,95454.0,0.20588172]
[1768767755795,0.02307857,95468.0,95455.0,0.11313333]
[1768767756102,0.02307857,95467.0,95455.0,0.11313333]
[1768767756408,0.09436,95473.0,95455.0,0.11313333]
[1768767756595,0.02308281,95468.0,95455.0,0.11313333]
[1768767756787,0.02308281,95467.0,95455.0,0.11313333]
[1768767756991,0.09436,95473.0,95455.0,0.11313333]
[1768767757192,0.02308579,95468.0,95455.0,0.11313333]
[1768767757393,0.02308579,95467.0,95455.0,0.11313333]
[1768767757594,0.02308579,95466.0,95455.0,0.11313333]
[1768767757796,0.09436,95473.0,95455.0,0.11313333]
[1768767757995,0.02308585,95468.0,95455.0,0.11313333]
[1768767758199,0.02308585,95467.0,95455.0,0.20945697]
[1768767758399,0.02308585,95466.0,95455.0,0.20945697]
[1768767758603,0.09436,95473.0,95455.0,0.20945697]
[1768767758793,0.02308969,95468.0,95455.0,0.20945697]
[1768767758992,0.02308969,95467.0,95455.0,0.20945697]
[1768767759206,0.02308969,95466.0,95456.0,0.21495738]
[1768767759400,0.0230947,95465.0,95459.0,0.21495738]
[1768767759602,0.09432,95476.0,95459.0,0.21495738]
[1768767761303,0.0971109,95479.0,95459.0,0.21495738]
[1768767761503,0.09432,95482.0,95462.0,0.21495738]
[1768767761703,0.20850869,95482.0,95462.0,0.21495738]
[1768767762210,0.20850869,95482.0,95459.0,0.10443919]
[1768767762211,0.09432,95482.0,95465.0,0.11863374]
[1768767762698,0.09432,95482.0,95464.0,0.09632364]
[1768767765303,0.20850869,95482.0,95464.0,0.09632364]
[1768767767503,0.11418869,95481.0,95464.0,0.09632364]
[1768767768804,0.11418869,95481.0,95460.0,0.10443919]
[1768767770609,0.11418869,95481.0,95460.0,0.31939657]
[1768767770799,0.11418869,95481.0,95462.0,0.21495738]
[1768767771003,0.11418869,95480.0,95460.0,0.10443919]
[1768767771712,0.13708424,95479.0,95460.0,0.10443919]
[1768767771903,0.02289555,95478.0,95460.0,0.10443919]
[1768767778114,0.02289555,95478.0,95460.0,0.31349642]
[1768767779514,0.02289555,95477.0,95461.0,0.11449218]
[1768767779713,0.02289555,95476.0,95461.0,0.11449218]
[1768767779917,0.09927362,95481.0,95461.0,0.11449218]
[1768767780114,0.0228949,95480.0,95461.0,0.11449218]
[1768767780310,0.0228949,95479.0,95461.0,0.11449218]
[1768767781512,0.0228949,95479.0,95465.0,0.20905723]
[1768767781720,0.0228949,95478.0,95466.0,0.11449218]
[1768767782019,0.0228949,95477.0,95466.0,0.11449218]
[1768767782315,0.0228949,95476.0,95465.0,0.09456505]
[1768767782517,0.10443919,95480.0,95465.0,0.09456505]
[1768767782718,0.02289623,95479.0,95465.0,0.09456505]
[1768767782910,0.02289623,95478.0,95465.0,0.09456505]
[1768767783107,0.02289623,95477.0,95465.0,0.09456505]
[1768767783305,0.02289623,95476.0,95465.0,0.09456505]
[1768767783510,0.10443919,95480.0,95465.0,0.09456505]
[1768767783711,0.02289704,95479.0,95465.0,0.09456505]
[1768767783911,0.02289704,95478.0,95465.0,0.09456505]
[1768767784112,0.02289704,95477.0,95465.0,0.09456505]
[1768767784309,0.02289704,95476.0,95465.0,0.09456505]
[1768767784521,0.10443919,95480.0,95465.0,0.09456505]
[1768767784723,0.02289814,95479.0,95465.0,0.09456505]
[1768767785025,0.02289814,95478.0,95465.0,0.09456505]
[1768767785214,0.02289814,95477.0,95465.0,0.09456505]
[1768767785410,0.02289814,95476.0,95465.0,0.09456505]
[1768767785709,0.10443919,95480.0,95465.0,0.09456505]
[1768767786022,0.0228994,95479.0,95465.0,0.09456505]
[1768767786323,0.0228994,95478.0,95465.0,0.09456505]
[1768767786627,0.0228994,95477.0,95465.0,0.09456505]
[1768767786818,0.10443919,95480.0,95465.0,0.09456505]
[1768767787122,0.02290096,95479.0,95465.0,0.09456505]
[1768767787323,0.02290096,95478.0,95465.0,0.09456505]
[1768767787625,0.02290096,95477.0,95465.0,0.09456505]
[1768767787815,0.10443919,95480.0,95465.0,0.09456505]
[1768767788012,0.0229029,95479.0,95465.0,0.09456505]
[1768767788212,0.0229029,95478.0,95465.0,0.09456505]
[1768767788412,0.0229029,95477.0,95465.0,0.09456505]
[1768767788621,0.10443919,95480.0,95465.0,0.09456505]
[1768767788822,0.02290517,95479.0,95465.0,0.09456505]
[1768767789020,0.02290517,95478.0,95465.0,0.09456505]
[1768767789231,0.02290517,95477.0,95465.0,0.09456505]
[1768767789414,0.02290517,95476.0,95465.0,0.09456505]
[1768767789620,0.10443919,95480.0,95465.0,0.09456505]
[1768767789917,0.02290808,95479.0,95465.0,0.09456505]
[1768767790117,0.02290808,95478.0,95465.0,0.09456505]
[1768767790322,0.02290808,95477.0,95465.0,0.09456505]
[1768767790513,0.02290808,95476.0,95465.0,0.09456505]
[1768767790711,0.10443919,95480.0,95465.0,0.09456505]
[1768767790913,0.02291184,95479.0,95465.0,0.09456505]
[1768767791121,0.02291184,95478.0,95465.0,0.09456505]
[1768767791323,0.02291184,95477.0,95465.0,0.09456505]
[1768767791523,0.02291184,95476.0,95465.0,0.09456505]
[1768767791723,0.02291184,95475.0,95465.0,0.09456505]
[1768767791924,0.10443919,95480.0,95465.0,0.09456505]
[1768767792124,0.02291754,95479.0,95465.0,0.09456505]
[1768767792422,0.10443919,95480.0,95465.0,0.09456505]
[1768767792423,0.02291754,95478.0,95465.0,0.09456505]
[1768767792624,0.02291754,95477.0,95465.0,0.09456505]
[1768767792825,0.02291754,95476.0,95465.0,0.09456505]
[1768767793024,0.02291754,95475.0,95465.0,0.09456505]
[1768767793223,0.02291754,95474.0,95465.0,0.09456505]
[1768767793523,0.10443919,95480.0,95465.0,0.09456505]
[1768767793724,0.02292434,95479.0,95465.0,0.09456505]
[1768767794024,0.02292434,95478.0,95465.0,0.09456505]
[1768767794322,0.02292434,95477.0,95465.0,0.09456505]
[1768767794524,0.02292434,95476.0,95465.0,0.09456505]
[1768767794725,0.02292434,95475.0,95465.0,0.09456505]
[1768767794925,0.02292434,95474.0,95465.0,0.09456505]
[1768767795125,0.10443919,95480.0,95465.0,0.09456505]
[1768767795319,0.02292421,95479.0,95465.0,0.09456505]
[1768767795517,0.02292421,95478.0,95465.0,0.09456505]
[1768767795718,0.02292421,95477.0,95465.0,0.09456505]
[1768767795918,0.02292421,95476.0,95465.0,0.09456505]
[1768767796120,0.02292421,95475.0,95465.0,0.09456505]
[1768767796321,0.02292421,95474.0,95465.0,0.09456505]
[1768767796528,0.02292421,95473.0,95465.0,0.09456505]
[1768767796733,0.10443919,95480.0,95465.0,0.09456505]
[1768767797028,0.02292426,95479.0,95465.0,0.09456505]
[1768767797226,0.10443919,95480.0,95465.0,0.09456505]
[1768767797227,0.02292426,95478.0,95465.0,0.09456505]
[1768767797424,0.02292426,95477.0,95465.0,0.09456505]
[1768767797619,0.02292426,95476.0,95465.0,0.09456505]
[1768767797929,0.02292426,95475.0,95465.0,0.09456505]
[1768767798227,0.10443919,95480.0,95465.0,0.09456505]
[1768767798228,0.02292426,95474.0,95465.0,0.09456505]
[1768767798425,0.02292426,95473.0,95465.0,0.09456505]
[1768767798726,0.10443919,95480.0,95465.0,0.09456505]
[1768767799025,0.02292422,95479.0,95465.0,0.09456505]
[1768767799322,0.02292422,95478.0,95465.0,0.09456505]
[1768767799524,0.02292422,95477.0,95465.0,0.09456505]
[1768767799724,0.02292422,95476.0,95465.0,0.09456505]
[1768767799925,0.02292422,95475.0,95465.0,0.09456505]
[1768767800126,0.02292422,95474.0,95465.0,0.09456505]
[1768767800326,0.10443919,95480.0,95465.0,0.09456505]
[1768767800327,0.02292422,95473.0,95465.0,0.09456505]
[1768767800528,0.10443919,95480.0,95465.0,0.09456505]
[1768767800719,0.02292435,95479.0,95465.0,0.09456505]
[1768767800915,0.02292435,95478.0,95465.0,0.09456505]
[1768767801123,0.02292435,95477.0,95465.0,0.09456505]
[1768767801316,0.02292435,95476.0,95465.0,0.09456505]
[1768767801515,0.02292435,95475.0,95465.0,0.09456505]
[1768767801725,0.02292435,95474.0,95465.0,0.09456505]
[1768767801927,0.02292435,95473.0,95465.0,0.09456505]
[1768767802127,0.09432,95482.0,95465.0,0.09456505]
[1768767802328,0.0229247,95481.0,95465.0,0.09456505]
[1768767802528,0.0229247,95480.0,95465.0,0.09456505]
[1768767802826,0.0229247,95479.0,95465.0,0.09456505]
[1768767803028,0.0229247,95478.0,95465.0,0.09456505]
[1768767803230,0.0229247,95477.0,95465.0,0.09456505]
[1768767803424,0.0229247,95476.0,95465.0,0.09456505]
[1768767803624,0.0229247,95475.0,95465.0,0.09456505]
[1768767803825,0.0229247,95474.0,95465.0,0.09456505]
[1768767804026,0.0229247,95473.0,95465.0,0.09456505]
[1768767804239,0.09432,95482.0,95465.0,0.09456505]
[1768767804419,0.02292461,95481.0,95465.0,0.09456505]
[1768767804622,0.02292461,95480.0,95465.0,0.09456505]
[1768767804819,0.02292461,95479.0,95465.0,0.09456505]
[1768767805023,0.02292461,95478.0,95465.0,0.09456505]
[1768767805221,0.02292461,95477.0,95465.0,0.09456505]
[1768767805428,0.02292461,95476.0,95465.0,0.09456505]
[1768767805628,0.02292461,95475.0,95465.0,0.09456505]
[1768767805829,0.02292461,95474.0,95465.0,0.09456505]
[1768767806031,0.02292461,95473.0,95465.0,0.09456505]
[1768767806330,0.09432,95482.0,95465.0,0.09456505]
[1768767806531,0.02292444,95481.0,95465.0,0.09456505]
[1768767806730,0.02292444,95480.0,95465.0,0.09456505]
[1768767807029,0.02292444,95479.0,95465.0,0.09456505]
[1768767807232,0.02292444,95478.0,95465.0,0.09456505]
[1768767807433,0.02292444,95477.0,95465.0,0.09456505]
[1768767807633,0.02292444,95476.0,95465.0,0.09456505]
[1768767807934,0.02292444,95475.0,95465.0,0.09456505]
[1768767808134,0.02292444,95474.0,95465.0,0.09456505]
[1768767808335,0.02292444,95473.0,95465.0,0.09456505]
[1768767808528,0.09432,95482.0,95465.0,0.09456505]
[1768767808728,0.02292446,95481.0,95465.0,0.09456505]
[1768767809034,0.02292446,95480.0,95465.0,0.09456505]
[1768767809231,0.02292446,95479.0,95465.0,0.09456505]
[1768767809426,0.02292446,95478.0,95465.0,0.09456505]
[1768767809628,0.02292446,95477.0,95465.0,0.09456505]
[1768767809932,0.02292446,95476.0,95465.0,0.09456505]
[1768767810133,0.02292446,95475.0,95465.0,0.09456505]
[1768767810333,0.02292446,95474.0,95465.0,0.09456505]
[1768767810535,0.02292446,95473.0,95465.0,0.09456505]
[1768767810733,0.09432,95482.0,95465.0,0.09456505]
[1768767810938,0.0229245,95481.0,95465.0,0.09456505]
[1768767811237,0.0229245,95480.0,95465.0,0.09456505]
[1768767811535,0.0229245,95479.0,95465.0,0.09456505]
[1768767811737,0.0229245,95478.0,95465.0,0.09456505]
[1768767811938,0.0229245,95477.0,95465.0,0.09456505]
[1768767812136,0.0229245,95476.0,95465.0,0.09456505]
[1768767812436,0.0229245,95475.0,95465.0,0.09456505]
[1768767812637,0.0229245,95474.0,95465.0,0.09456505]
[1768767812835,0.0229245,95473.0,95465.0,0.09456505]
[1768767813037,0.09432,95482.0,95465.0,0.09456505]
[1768767813238,0.02292463,95481.0,95465.0,0.09456505]
[1768767813438,0.02292463,95480.0,95465.0,0.09456505]
[1768767813735,0.02292463,95479.0,95465.0,0.09456505]
[1768767813935,0.02292463,95478.0,95465.0,0.09456505]
[1768767814135,0.02292463,95477.0,95465.0,0.09456505]
[1768767814335,0.02292463,95476.0,95465.0,0.09456505]
[1768767814538,0.02292463,95475.0,95465.0,0.09456505]
[1768767814738,0.02292463,95474.0,95465.0,0.09456505]
[1768767814928,0.09432,95482.0,95465.0,0.09456505]
[1768767814929,0.02292463,95473.0,95465.0,0.09456505]
[1768767815131,0.09432,95482.0,95465.0,0.09456505]
[1768767815433,0.02292253,95481.0,95465.0,0.09456505]
[1768767815732,0.02292253,95480.0,95465.0,0.09456505]
[1768767816033,0.02292253,95479.0,95465.0,0.09456505]
[1768767816330,0.02292253,95478.0,95465.0,0.09456505]
[1768767816527,0.02292253,95477.0,95465.0,0.09456505]
[1768767816732,0.02292253,95476.0,95465.0,0.09456505]
[1768767816940,0.02292253,95475.0,95465.0,0.09456505]
[1768767817139,0.09432,95482.0,95465.0,0.09456505]
[1768767817140,0.02292253,95474.0,95465.0,0.09456505]
[1768767817439,0.02292253,95473.0,95465.0,0.09456505]
[1768767817641,0.09432,95482.0,95465.0,0.09456505]
[1768767817840,0.0229225,95481.0,95465.0,0.09456505]
[1768767818040,0.0229225,95480.0,95465.0,0.09456505]
[1768767818242,0.0229225,95479.0,95465.0,0.09456505]
[1768767818542,0.0229225,95478.0,95465.0,0.09456505]
[1768767818742,0.0229225,95477.0,95465.0,0.09456505]
[1768767819044,0.0229225,95476.0,95465.0,0.09456505]
[1768767819247,0.0229225,95475.0,95465.0,0.09456505]
[1768767819541,0.0229225,95474.0,95465.0,0.09456505]
[1768767819741,0.0229225,95473.0,95465.0,0.09456505]
[1768767819943,0.09432,95482.0,95465.0,0.09456505]
[1768767820245,0.0229226,95481.0,95465.0,0.09456505]
[1768767820445,0.0229226,95480.0,95465.0,0.09456505]
[1768767820644,0.0229226,95479.0,95465.0,0.09456505]
[1768767820845,0.0229226,95478.0,95465.0,0.09456505]
[1768767821045,0.0229226,95477.0,95465.0,0.09456505]
[1768767821245,0.0229226,95476.0,95465.0,0.09456505]
[1768767821447,0.0229226,95475.0,95465.0,0.09456505]
[1768767821642,0.0229226,95474.0,95465.0,0.09456505]
[1768767821941,0.0229226,95473.0,95465.0,0.09456505]
[1768767822142,0.09432,95482.0,95465.0,0.09456505]
[1768767822335,0.02292264,95481.0,95465.0,0.09456505]
[1768767822538,0.02292264,95480.0,95465.0,0.09456505]
[1768767822838,0.02292264,95479.0,95465.0,0.09456505]
[1768767823139,0.02292264,95478.0,95465.0,0.09456505]
[1768767823447,0.02292264,95477.0,95465.0,0.09456505]
[1768767823649,0.02292264,95476.0,95465.0,0.21407585]
[1768767823949,0.02292264,95475.0,95465.0,0.21407585]
[1768767824247,0.02292264,95474.0,95465.0,0.21407585]
[1768767824441,0.02292264,95473.0,95465.0,0.21407585]
[1768767824746,0.09432,95482.0,95465.0,0.21407585]
[1768767824947,0.0228987,95481.0,95465.0,0.21407585]
[1768767825148,0.0228987,95480.0,95465.0,0.21407585]
[1768767825348,0.0228987,95479.0,95465.0,0.21407585]
[1768767825549,0.0228987,95478.0,95465.0,0.21407585]
[1768767825749,0.0228987,95477.0,95465.0,0.21407585]
[1768767826048,0.0228987,95476.0,95465.0,0.21407585]
[1768767826248,0.0228987,95475.0,95465.0,0.21407585]
[1768767826449,0.02289844,95474.0,95465.0,0.21407585]
[1768767826644,0.02289844,95473.0,95465.0,0.21407585]
[1768767826845,0.09432,95482.0,95465.0,0.21407585]
[1768767827049,0.02289846,95481.0,95465.0,0.21407585]
[1768767827346,0.02289846,95480.0,95465.0,0.21407585]
[1768767827547,0.02289846,95479.0,95465.0,0.21407585]
[1768767827746,0.02289846,95478.0,95465.0,0.21407585]
[1768767827946,0.02289846,95477.0,95465.0,0.21407585]
[1768767828147,0.02289846,95476.0,95465.0,0.21407585]
[1768767828348,0.02289846,95475.0,95465.0,0.21407585]
[1768767828548,0.02289846,95474.0,95465.0,0.21407585]
[1768767828751,0.02289846,95473.0,95465.0,0.21407585]
[1768767828949,0.09432,95482.0,95465.0,0.21407585]
[1768767829150,0.02289843,95481.0,95465.0,0.21407585]
[1768767829441,0.02289843,95480.0,95465.0,0.21407585]
[1768767829754,0.02289843,95479.0,95465.0,0.21407585]
[1768767829954,0.02289843,95478.0,95465.0,0.21407585]
[1768767830255,0.02289843,95477.0,95465.0,0.21407585]
[1768767830446,0.02289843,95476.0,95465.0,0.21407585]
[1768767830646,0.02289843,95475.0,95465.0,0.21407585]
[1768767830847,0.02289843,95474.0,95465.0,0.21407585]
[1768767831044,0.02289843,95473.0,95465.0,0.21407585]
[1768767831244,0.09432,95482.0,95465.0,0.21407585]
[1768767831448,0.0228985,95481.0,95465.0,0.21407585]
[1768767831651,0.0228985,95480.0,95465.0,0.21407585]
[1768767831948,0.0228985,95479.0,95465.0,0.21407585]
[1768767832149,0.0228985,95478.0,95465.0,0.21407585]
[1768767832451,0.0228985,95477.0,95465.0,0.21407585]
[1768767832651,0.0228985,95476.0,95465.0,0.21407585]
[1768767832946,0.0228985,95475.0,95465.0,0.21407585]
[1768767833151,0.0228985,95474.0,95465.0,0.21407585]
[1768767833349,0.0228985,95473.0,95465.0,0.21407585]